bitfinex/quotes_BTCUSD_20220226
["timestamp","ask_amount","ask_price","bid_price","bid_amount"]
[1645908739907,0.322608,39432.0,39428.0,0.37877]
[1645908740109,0.54462799,39432.0,39429.0,0.76086]
[1645908740409,0.322608,39432.0,39430.0,0.37877]
[1645908741757,0.321508,39431.0,39430.0,0.37877]
[1645908742058,0.322608,39432.0,39430.0,1.13961]
[1645908743661,0.321508,39431.0,39430.0,1.13961]
[1645908743961,0.322608,39432.0,39430.0,1.13961]
[1645908744607,0.321508,39431.0,39430.0,1.13961]
[1645908745609,0.0011,39432.0,39430.0,1.13961]
[1645908745811,0.32304308,39432.0,39431.0,0.37877]
[1645908746709,0.322608,39432.0,39431.0,0.37877]
[1645908748958,0.49987931,39432.0,39431.0,0.37877]
[1645908749158,0.322608,39432.0,39431.0,0.37877]
[1645908749358,0.0011,39432.0,39431.0,0.37877]
[1645908749962,0.0031708,39432.0,39431.0,0.37877]
[1645908752317,0.37827276,39432.0,39431.0,0.37877]
[1645908752714,0.0031708,39432.0,39431.0,0.37877]
[1645908753713,0.0031708,39432.0,39431.0,0.13453375]
[1645908753918,0.0040643,39432.0,39431.0,0.13453375]
[1645908754515,0.37916626,39432.0,39431.0,0.13453375]
[1645908756387,0.12145612,39432.0,39431.0,0.13453375]
[1645908756787,0.37909932,39432.0,39431.0,0.13453375]
[1645908757488,0.37509932,39432.0,39431.0,0.13453375]
[1645908758097,0.36009932,39432.0,39431.0,0.13453375]
[1645908758389,0.11724148,39432.0,39431.0,0.13453375]
[1645908759421,0.0747395,39432.0,39431.0,0.13453375]
[1645908759820,0.0747395,39432.0,39431.0,0.22258375]
[1645908760023,0.0043,39433.0,39431.0,0.39111035]
[1645908760223,0.00473533,39433.0,39431.0,0.39111035]
[1645908761023,0.0043,39433.0,39431.0,0.39111035]
[1645908762026,0.0043,39433.0,39432.0,0.67877]
[1645908762527,0.0043,39433.0,39432.0,0.37877]
[1645908762728,0.0043,39433.0,39432.0,0.37866424]
[1645908763167,0.0043,39433.0,39432.0,0.67866424]
[1645908763573,0.32148835,39434.0,39433.0,1.567538]
[1645908763772,0.32148835,39434.0,39433.0,2.428318]
[1645908763773,0.26789397,39434.0,39433.0,2.428318]
[1645908763969,0.26789397,39436.0,39434.0,2.00005]
[1645908764167,0.26789397,39437.0,39435.0,1.439385]
[1645908764372,0.0021,39438.0,39437.0,0.57164186]
[1645908764668,0.0021,39438.0,39437.0,2.01096486]
[1645908765270,0.27192657,39441.0,39439.0,0.80005]
[1645908765474,0.0068635,39445.0,39440.0,2.290183]
[1645908765671,0.0068635,39445.0,39441.0,0.80005]
[1645908765872,0.00041323,39449.0,39444.0,0.378541]
[1645908766075,0.00041323,39449.0,39445.0,0.76055]
[1645908766270,0.00041323,39449.0,39447.0,0.19264197]
[1645908766471,0.00041323,39449.0,39448.0,0.378501]
[1645908766671,0.40665288,39454.0,39449.0,1.05]
[1645908766917,0.0022,39455.0,39450.0,0.366362]
[1645908767118,0.0022,39455.0,39450.0,0.05]
[1645908768111,0.0022,39455.0,39445.0,1.23131775]
[1645908768312,0.18315816,39453.0,39445.0,1.23131775]
[1645908768913,0.18315816,39453.0,39445.0,1.06155]
[1645908769114,0.35019084,39453.0,39445.0,1.06055]
[1645908769311,0.35019084,39453.0,39445.0,0.76055]
[1645908769712,0.00043564,39451.0,39445.0,0.76055]
[1645908770765,0.35019084,39453.0,39445.0,0.76055]
[1645908770961,0.00043565,39450.0,39445.0,0.76055]
[1645908771961,0.18315816,39453.0,39445.0,0.76055]
[1645908772169,0.32108713,39448.0,39446.0,0.378659]
[1645908772464,0.32108713,39448.0,39447.0,1.106776]
[1645908772661,0.53455726,39449.0,39447.0,1.106776]
[1645908772861,0.3210894,39448.0,39447.0,0.76051]
[1645908773061,0.3210894,39448.0,39447.0,1.139169]
[1645908773660,0.3210894,39448.0,39447.0,0.84272117]
[1645908773862,0.50540238,39448.0,39447.0,0.84272117]
[1645908774516,0.50540238,39448.0,39447.0,0.46406217]
[1645908774917,1.03757479,39448.0,39447.0,0.46406217]
[1645908775116,0.76942185,39448.0,39447.0,0.46406217]
[1645908775914,0.82032185,39448.0,39447.0,0.46406217]
[1645908776914,0.88375585,39448.0,39447.0,0.46406217]
[1645908778361,0.88375585,39448.0,39447.0,0.27940921]
[1645908781826,0.77730598,39448.0,39447.0,0.27940921]
[1645908782026,0.83296414,39448.0,39447.0,0.27940921]
[1645908784026,0.83206274,39448.0,39447.0,0.27940921]
[1645908788166,0.83206274,39448.0,39447.0,0.21319212]
[1645908788369,0.76862874,39448.0,39447.0,0.21319212]
[1645908791416,0.76862874,39448.0,39447.0,0.19521012]
[1645908794862,0.77298383,39448.0,39447.0,0.19521012]
[1645908796465,0.83641883,39448.0,39447.0,0.19521012]
[1645908797515,0.58957225,39448.0,39447.0,0.19521012]
[1645908798213,0.58957225,39448.0,39447.0,0.16968345]
[1645908798418,0.75330901,39448.0,39447.0,0.16968345]
[1645908799317,0.75147506,39448.0,39447.0,0.16968345]
[1645908800671,0.80147506,39448.0,39447.0,0.16968345]
[1645908803170,0.79647506,39448.0,39447.0,0.16968345]
[1645908804423,1.22460119,39448.0,39447.0,0.16968345]
[1645908804818,0.79647506,39448.0,39447.0,0.16968345]
[1645908805618,0.79147506,39448.0,39447.0,0.16968345]
[1645908806522,1.21960119,39448.0,39447.0,0.16968345]
[1645908808268,1.21960119,39448.0,39447.0,0.12658287]
[1645908809669,1.22376808,39448.0,39447.0,0.12648187]
[1645908811072,0.79564195,39448.0,39447.0,0.12648187]
[1645908811673,1.22376808,39448.0,39447.0,0.1263756]
[1645908813616,0.79564195,39448.0,39447.0,0.1263756]
[1645908817070,1.22423311,39448.0,39447.0,0.1263756]
[1645908817269,0.78930495,39448.0,39447.0,0.1263756]
[1645908818371,0.78930495,39448.0,39447.0,0.10471138]
[1645908819912,0.78930495,39448.0,39447.0,0.10902682]
[1645908820714,0.62556819,39448.0,39447.0,0.10902682]
[1645908820915,0.43856409,39448.0,39447.0,0.10902682]
[1645908821116,0.48853741,39448.0,39447.0,0.10902682]
[1645908821314,0.05990509,39448.0,39447.0,0.10902682]
[1645908821720,0.48853741,39448.0,39447.0,0.10902682]
[1645908822114,0.05990509,39448.0,39447.0,0.10902682]
[1645908830126,0.05565816,39448.0,39447.0,0.10471138]
[1645908830324,0.378659,39450.0,39447.0,0.10471138]
[1645908830566,0.05565816,39449.0,39447.0,0.10471138]
[1645908830768,0.05065816,39448.0,39447.0,0.10471138]
[1645908830972,0.42863232,39451.0,39447.0,0.10471138]
[1645908831569,0.378659,39450.0,39447.0,0.10471138]
[1645908831973,0.378659,39451.0,39447.0,0.10471138]
[1645908832469,0.00043623,39450.0,39447.0,0.10471138]
[1645908832670,0.378659,39449.0,39447.0,0.10471138]
[1645908833276,0.378659,39451.0,39447.0,0.10471138]
[1645908833474,0.00043624,39450.0,39447.0,0.10471138]
[1645908834418,0.378659,39451.0,39447.0,0.10471138]
[1645908834623,0.00043623,39450.0,39447.0,0.10471138]
[1645908835617,0.42863232,39452.0,39447.0,0.10471138]
[1645908835817,0.00043623,39450.0,39447.0,0.10471138]
[1645908836720,0.00043623,39450.0,39447.0,0.10426128]
[1645908836917,0.378659,39451.0,39447.0,0.10426128]
[1645908837124,0.00043623,39450.0,39448.0,0.3]
[1645908837420,0.00043623,39450.0,39449.0,0.378659]
[1645908837619,0.37530015,39450.0,39449.0,0.378659]
[1645908838065,0.37486392,39450.0,39449.0,0.378659]
[1645908838265,0.37530014,39451.0,39449.0,0.378659]
[1645908839067,0.37530014,39451.0,39450.0,0.646206]
[1645908839269,0.16508433,39453.0,39451.0,0.378637]
[1645908839467,0.16508433,39453.0,39452.0,0.671537]
[1645908839670,0.16508433,39453.0,39452.0,0.371537]
[1645908839868,0.53987858,39453.0,39452.0,0.671537]
[1645908840068,0.53987858,39453.0,39452.0,0.371537]
[1645908840869,0.53987858,39453.0,39452.0,0.671537]
[1645908841270,0.06508433,39453.0,39452.0,0.371537]
[1645908841472,0.43987858,39453.0,39452.0,0.371537]
[1645908842221,0.43988567,39453.0,39452.0,0.371537]
[1645908842418,0.43988567,39453.0,39452.0,0.346187]
[1645908842819,0.06508433,39453.0,39452.0,0.346187]
[1645908843119,0.06508433,39453.0,39448.0,0.00175846]
[1645908843318,0.06508433,39453.0,39449.0,0.378659]
[1645908843319,0.37480799,39451.0,39449.0,0.378659]
[1645908843518,0.37480799,39451.0,39450.0,1.4167]
[1645908843718,0.37480799,39452.0,39450.0,1.762904]
[1645908843918,0.37480799,39452.0,39450.0,1.4167]
[1645908844122,0.43989232,39453.0,39451.0,0.346194]
[1645908844320,0.44032871,39453.0,39450.0,1.4167]
[1645908844517,0.44032871,39453.0,39451.0,0.378659]
[1645908845120,0.44032871,39453.0,39451.0,0.00176483]
[1645908845319,0.43989232,39453.0,39452.0,0.378659]
[1645908845971,0.11289848,39453.0,39452.0,0.378659]
[1645908846371,0.10789848,39453.0,39452.0,0.378659]
[1645908846572,0.43480759,39453.0,39452.0,0.378659]
[1645908847176,0.10768852,39453.0,39452.0,0.378659]
[1645908849416,0.06008433,39453.0,39452.0,0.378659]
[1645908850716,0.38122017,39453.0,39452.0,0.378659]
[1645908853174,0.38122017,39453.0,39452.0,0.404009]
[1645908853375,0.38122017,39453.0,39452.0,0.378659]
[1645908853574,0.38122017,39453.0,39452.0,1.795359]
[1645908854175,0.06008433,39453.0,39452.0,1.795359]
[1645908855777,0.06008433,39453.0,39452.0,1.7949074]
[1645908856178,0.2868578,39455.0,39453.0,1.046145]
[1645908856378,0.2868578,39455.0,39454.0,0.378188]
[1645908856579,0.2868578,39455.0,39454.0,0.378651]
[1645908857017,0.0022,39455.0,39454.0,0.378651]
[1645908858217,0.0022,39455.0,39452.0,1.4167]
[1645908858518,0.32110256,39454.0,39453.0,0.378651]
[1645908859118,0.0022,39455.0,39453.0,0.378651]
[1645908859418,0.0022,39455.0,39452.0,3.4167]
[1645908859617,0.32110852,39453.0,39452.0,3.4167]
[1645908861275,0.32151952,39454.0,39452.0,3.4167]
[1645908862076,0.32110852,39454.0,39452.0,3.4167]
[1645908863278,0.32110852,39453.0,39452.0,3.4167]
[1645908863479,0.37722179,39455.0,39452.0,3.795351]
[1645908863677,0.37222179,39455.0,39453.0,0.67864]
[1645908863877,0.00041101,39455.0,39452.0,3.4167]
[1645908864077,0.00442749,39457.0,39455.0,0.2054737]
[1645908864321,0.00442749,39457.0,39454.0,0.3]
[1645908864522,0.00092749,39459.0,39454.0,0.1758271]
[1645908864723,0.03895766,39458.0,39455.0,0.65]
[1645908864924,0.03895766,39458.0,39454.0,0.1758271]
[1645908865422,0.03895766,39458.0,39457.0,0.18732681]
[1645908865626,0.02727487,39456.0,39454.0,0.1758271]
[1645908865829,0.02727487,39456.0,39455.0,0.678651]
[1645908866027,0.02727487,39456.0,39455.0,0.761181]
[1645908866028,4.87e-06,39456.0,39455.0,0.761181]
[1645908866225,7.07e-06,39458.0,39455.0,0.811181]
[1645908866424,7.07e-06,39458.0,39455.0,2.353131]
[1645908866624,7.07e-06,39458.0,39457.0,0.345634]
[1645908866825,0.00092749,39459.0,39457.0,2.062234]
[1645908867426,0.00042749,39459.0,39457.0,2.062234]
[1645908867826,0.00042749,39459.0,39458.0,0.3]
[1645908868073,0.00042749,39459.0,39458.0,2.095119]
[1645908868870,0.00042749,39459.0,39458.0,1.795119]
[1645908870273,0.00042749,39459.0,39458.0,1.820469]
[1645908870473,0.00042749,39459.0,39458.0,1.795119]
[1645908872123,0.0002635,39461.0,39459.0,1.545614]
[1645908872321,0.0002635,39461.0,39459.0,0.378651]
[1645908873323,0.0002635,39461.0,39460.0,0.3]
[1645908873627,0.0002635,39461.0,39460.0,0.645562]
[1645908873824,0.0002635,39461.0,39460.0,0.640562]
[1645908876477,0.0002635,39461.0,39460.0,0.665912]
[1645908876973,0.0002635,39461.0,39460.0,2.082412]
[1645908878182,0.0002635,39461.0,39460.0,2.182412]
[1645908878575,0.0002635,39461.0,39460.0,2.48879301]
[1645908878878,0.0002635,39461.0,39460.0,1.71419301]
[1645908879075,0.0002635,39461.0,39460.0,1.68884301]
[1645908879327,0.0002635,39461.0,39460.0,1.58884301]
[1645908883870,0.0002635,39461.0,39460.0,1.80170574]
[1645908884270,0.0002635,39461.0,39460.0,1.58884301]
[1645908885371,0.0002635,39461.0,39460.0,1.81280014]
[1645908886575,0.0002635,39461.0,39460.0,1.58884301]
[1645908891272,0.0021,39466.0,39464.0,0.172329]
[1645908891470,0.0021,39466.0,39465.0,1.4164]
[1645908891670,0.0021,39466.0,39465.0,1.794985]
[1645908893673,0.0021,39466.0,39465.0,1.4164]
[1645908893872,0.0021,39466.0,39465.0,1.785025]
[1645908894073,0.0021,39466.0,39465.0,1.4064]
[1645908894739,0.0021,39466.0,39465.0,1.785025]
[1645908896340,0.00263634,39467.0,39465.0,1.785025]
[1645908896540,0.00763634,39469.0,39467.0,1.2]
[1645908896738,0.00763634,39469.0,39468.0,0.728595]
[1645908896939,0.00763634,39469.0,39468.0,0.90812611]
[1645908897339,0.00763634,39469.0,39468.0,1.08955139]
[1645908897737,0.00763634,39469.0,39468.0,0.78955139]
[1645908897941,0.00763634,39469.0,39468.0,0.61002028]
[1645908898374,0.00763634,39469.0,39468.0,0.56002028]
[1645908898774,0.00263634,39469.0,39468.0,0.56002028]
[1645908898973,0.00263634,39469.0,39468.0,0.73692653]
[1645908899680,0.00263634,39469.0,39468.0,0.78692653]
[1645908901920,0.00263634,39469.0,39468.0,0.61002028]
[1645908902118,0.0011,39478.0,39469.0,1.20263]
[1645908902326,0.0030818,39486.0,39475.0,0.1]
[1645908902524,0.0030818,39486.0,39476.0,1.478459]
[1645908902718,0.0030818,39486.0,39478.0,0.02535]
[1645908902922,0.0030818,39486.0,39479.0,1.649208]
[1645908903221,0.0030818,39486.0,39481.0,0.378458]
[1645908905692,0.478625,39484.0,39479.0,1.4261]
[1645908905884,0.0509,39483.0,39479.0,1.4261]
[1645908906084,0.378625,39481.0,39479.0,1.4261]
[1645908906487,0.56858532,39480.0,39479.0,1.4261]
[1645908907486,0.56858532,39480.0,39475.0,0.00043739]
[1645908907487,0.6,39479.0,39475.0,0.00043739]
[1645908907687,0.1,39476.0,39475.0,0.00043739]
[1645908907881,0.378625,39475.0,39462.0,0.191]
[1645908908083,0.1509,39474.0,39462.0,0.191]
[1645908908484,0.23646387,39469.0,39464.0,0.378625]
[1645908909322,0.23646387,39469.0,39465.0,0.00029795]
[1645908910221,0.23646387,39469.0,39457.0,0.05]
[1645908910420,0.0509,39468.0,39465.0,0.00029794]
[1645908911023,0.0509,39468.0,39463.0,0.00454007]
[1645908912322,0.0539,39468.0,39463.0,0.00454007]
[1645908913577,0.0509,39468.0,39463.0,0.00454007]
[1645908914274,0.0539,39468.0,39463.0,0.00454007]
[1645908914477,0.1,39464.0,39463.0,0.00386423]
[1645908914676,0.529525,39464.0,39463.0,0.00386423]
[1645908915278,1.165225,39464.0,39463.0,0.00386423]
[1645908915476,1.2,39463.0,39462.0,0.00043731]
[1645908915677,2.42739615,39463.0,39462.0,0.00043731]
[1645908915977,0.6866,39463.0,39462.0,0.00043731]
[1645908916176,0.6866,39463.0,39457.0,0.05]
[1645908916377,0.6876,39463.0,39461.0,0.00043732]
[1645908916577,0.2068222,39451.0,39447.0,0.05]
[1645908916830,0.2068222,39451.0,39448.0,0.378625]
[1645908917034,0.2068222,39451.0,39444.0,0.172558]
[1645908917232,0.0509,39450.0,39444.0,0.172558]
[1645908917831,0.0509,39450.0,39442.0,0.01013]
[1645908918037,0.0509,39450.0,39440.0,0.04]
[1645908918432,0.0519,39450.0,39440.0,0.04]
[1645908918632,0.378625,39448.0,39440.0,0.04]
[1645908918831,0.0509,39447.0,39440.0,0.04]
[1645908919031,0.378625,39449.0,39440.0,0.04]
[1645908919032,0.0509,39446.0,39440.0,0.04]
[1645908919236,0.429525,39445.0,39440.0,0.04]
[1645908919437,0.378625,39444.0,39440.0,0.04]
[1645908919634,0.378625,39442.0,39440.0,0.04]
[1645908919834,0.0509,39441.0,39440.0,0.04]
[1645908920035,0.429525,39441.0,39440.0,0.04043719]
[1645908920337,0.0509,39441.0,39440.0,0.04043719]
[1645908921074,0.063439,39445.0,39444.0,0.30779999]
[1645908921474,0.442064,39445.0,39444.0,0.30779999]
[1645908922075,0.063439,39445.0,39444.0,0.30779999]
[1645908922275,0.443064,39445.0,39444.0,0.30779999]
[1645908922675,0.064439,39445.0,39444.0,0.30779999]
[1645908923078,0.493964,39445.0,39444.0,0.30779999]
[1645908923481,0.115339,39445.0,39444.0,0.30779999]
[1645908923678,0.0509,39445.0,39444.0,0.30779999]
[1645908924079,0.0509,39445.0,39444.0,0.30279999]
[1645908924329,0.0519,39445.0,39444.0,0.30279999]
[1645908925631,0.0509,39445.0,39444.0,0.30279999]
[1645908926331,0.430525,39445.0,39444.0,0.30279999]
[1645908926731,0.430525,39445.0,39444.0,0.29779999]
[1645908927532,0.429525,39445.0,39444.0,0.29615199]
[1645908928379,2.59634611,39445.0,39444.0,0.29615199]
[1645908928579,2.21772111,39445.0,39444.0,0.29615199]
[1645908929380,2.21704129,39445.0,39444.0,0.29615199]
[1645908929579,2.21604129,39445.0,39444.0,0.29615199]
[1645908930180,2.21104129,39445.0,39444.0,0.29615199]
[1645908930381,2.21204129,39445.0,39444.0,0.29615199]
[1645908930782,0.04622018,39445.0,39444.0,0.29615199]
[1645908930981,0.42484518,39445.0,39444.0,0.29615199]
[1645908932229,0.42384518,39445.0,39444.0,0.29615199]
[1645908932431,0.42484518,39445.0,39444.0,0.29615199]
[1645908933630,0.41595197,39445.0,39444.0,0.29615199]
[1645908934429,0.41695197,39445.0,39444.0,0.29615199]
[1645908934630,0.03332697,39445.0,39444.0,0.29615199]
[1645908935672,0.03232697,39445.0,39444.0,0.29615199]
[1645908936372,0.03332697,39445.0,39444.0,0.28615199]
[1645908937174,0.41195197,39445.0,39444.0,0.28615199]
[1645908937575,0.41095197,39445.0,39444.0,0.28615199]
[1645908938480,0.41195197,39445.0,39444.0,0.28615199]
[1645908939544,0.03232697,39445.0,39444.0,0.28615199]
[1645908940241,0.41383831,39445.0,39444.0,0.28615199]
[1645908940440,0.41483831,39445.0,39444.0,0.28615199]
[1645908941642,0.41383831,39445.0,39444.0,0.28615199]
[1645908942443,0.46483831,39445.0,39444.0,0.28615199]
[1645908942745,0.12505141,39445.0,39444.0,0.28615199]
[1645908942947,0.25193941,39445.0,39444.0,0.28615199]
[1645908943587,0.21310131,39445.0,39444.0,0.28615199]
[1645908943782,0.21210131,39445.0,39444.0,0.28615199]
[1645908944383,0.21310131,39445.0,39444.0,0.28615199]
[1645908944581,0.21237973,39445.0,39444.0,0.28615199]
[1645908945181,0.59100473,39445.0,39444.0,0.28615199]
[1645908945583,0.59000473,39445.0,39444.0,0.28615199]
[1645908945783,0.59000473,39445.0,39444.0,0.28345199]
[1645908946189,0.46311673,39445.0,39444.0,0.28345199]
[1645908946385,0.45411673,39445.0,39444.0,0.28345199]
[1645908947636,0.45311673,39445.0,39444.0,0.28345199]
[1645908948435,0.45411673,39445.0,39444.0,0.28345199]
[1645908948943,0.07549173,39445.0,39444.0,0.28345199]
[1645908949237,0.45411673,39445.0,39444.0,0.28345199]
[1645908949637,0.45411673,39445.0,39444.0,0.28335099]
[1645908949638,0.00216476,39445.0,39444.0,0.28335099]
[1645908950439,0.38178976,39445.0,39444.0,0.28335099]
[1645908952189,0.38078976,39445.0,39444.0,0.28335099]
[1645908952393,0.38178976,39445.0,39444.0,0.28335099]
[1645908953790,0.38078976,39445.0,39444.0,0.28335099]
[1645908954443,0.35678976,39445.0,39444.0,0.28335099]
[1645908955046,0.35678976,39445.0,39444.0,0.28325124]
[1645908955243,0.35895452,39445.0,39444.0,0.28325124]
[1645908955845,0.35795452,39445.0,39444.0,0.28325124]
[1645908956444,0.35895452,39445.0,39444.0,0.28325124]
[1645908957648,0.35795452,39445.0,39444.0,0.28325124]
[1645908958078,0.40885452,39445.0,39444.0,0.28325124]
[1645908958483,0.40985452,39445.0,39444.0,0.28325124]
[1645908959281,0.40985452,39445.0,39444.0,2.28325124]
[1645908959782,0.40885452,39445.0,39444.0,2.28325124]
[1645908960381,0.45885452,39445.0,39444.0,2.28325124]
[1645908960583,0.50985452,39445.0,39444.0,2.28325124]
[1645908961685,0.80286981,39445.0,39444.0,2.28325124]
[1645908962342,0.80186981,39445.0,39444.0,2.28325124]
[1645908962543,0.80286981,39445.0,39444.0,2.28325124]
[1645908962845,1.14986981,39445.0,39444.0,1.51833285]
[1645908963043,1.14986981,39445.0,39444.0,0.16428458]
[1645908963044,2.24626129,39445.0,39444.0,0.16428458]
[1645908963443,1.518995,39444.0,39443.0,0.00041017]
[1645908963643,2.33250922,39444.0,39443.0,0.00041017]
[1645908963847,0.65,39443.0,39440.0,0.04]
[1645908964044,0.62275622,39441.0,39440.0,0.04]
[1645908964346,0.62275622,39441.0,39426.0,0.1192]
[1645908964347,0.06347056,39436.0,39426.0,0.1192]
[1645908964548,0.126944,39434.0,39426.0,0.1192]
[1645908964753,0.479577,39433.0,39426.0,0.1192]
[1645908965144,0.479577,39433.0,39422.0,0.3796]
[1645908965145,0.479577,39433.0,39423.0,0.17249765]
[1645908965621,0.80648518,39428.0,39423.0,0.17249765]
[1645908965811,0.493046,39427.0,39426.0,0.00041113]
[1645908966211,0.793046,39427.0,39426.0,0.00041113]
[1645908966413,0.794046,39427.0,39426.0,0.00041113]
[1645908966812,0.12696,39425.0,39421.0,0.011]
[1645908967011,0.729577,39424.0,39421.0,0.011]
[1645908967213,0.378744,39423.0,39421.0,0.011]
[1645908967415,0.3509,39422.0,39421.0,0.011]
[1645908967613,0.729644,39422.0,39421.0,0.011]
[1645908967920,0.429644,39422.0,39421.0,0.01]
[1645908968516,0.430644,39422.0,39421.0,0.01]
[1645908969727,0.529644,39422.0,39421.0,0.01]
[1645908970529,0.530644,39422.0,39421.0,0.01]
[1645908971829,0.529644,39422.0,39421.0,0.01]
[1645908972330,0.529644,39422.0,39420.0,0.17622369]
[1645908972331,0.829644,39422.0,39420.0,0.0004114]
[1645908972536,1.914444,39421.0,39420.0,0.0004114]
[1645908972730,1.914444,39421.0,39412.0,0.1857]
[1645908972731,0.063495,39419.0,39412.0,0.1857]
[1645908972933,0.6357,39417.0,39411.0,0.3122]
[1645908973185,0.6357,39417.0,39404.0,0.3699]
[1645908973186,0.126995,39415.0,39406.0,0.035]
[1645908973389,0.729644,39414.0,39406.0,0.035]
[1645908973785,0.793142,39414.0,39406.0,0.035]
[1645908973984,0.793142,39414.0,39407.0,0.1]
[1645908974185,0.793142,39414.0,39406.0,0.035]
[1645908974587,0.794142,39414.0,39409.0,0.1]
[1645908975786,0.793142,39414.0,39409.0,0.1]
[1645908976588,0.794142,39414.0,39410.0,0.0004366]
[1645908977030,0.794142,39414.0,39406.0,0.0304366]
[1645908977228,0.794142,39414.0,39410.0,0.1]
[1645908977732,0.793142,39414.0,39410.0,0.1]
[1645908978533,0.794142,39414.0,39410.0,0.1]
[1645908979131,0.794142,39414.0,39410.0,0.10289824]
[1645908979731,0.793142,39414.0,39410.0,0.10289824]
[1645908980433,0.794142,39414.0,39410.0,0.10289824]
[1645908981086,0.794142,39414.0,39410.0,0.00289824]
[1645908981280,0.794142,39414.0,39410.0,0.10289824]
[1645908981784,0.793142,39414.0,39410.0,0.10289824]
[1645908982381,0.793142,39414.0,39410.0,0.00289824]
[1645908982785,0.794142,39414.0,39410.0,0.00289824]
[1645908984083,0.793142,39414.0,39410.0,0.00289824]
[1645908984331,0.793142,39414.0,39410.0,0.00436755]
[1645908984534,0.794142,39414.0,39410.0,0.00436755]
[1645908985535,0.430644,39414.0,39410.0,0.00436755]
[1645908985736,0.378744,39414.0,39413.0,0.1]
[1645908985934,0.104523,39421.0,39414.0,0.19319231]
[1645908986434,0.104523,39421.0,39416.0,0.1]
[1645908986435,0.105523,39421.0,39416.0,0.1]
[1645908986833,0.105523,39421.0,39415.0,0.21242693]
[1645908987235,0.105523,39421.0,39416.0,0.1]
[1645908987435,0.105523,39421.0,39416.0,0.095]
[1645908987637,0.105523,39421.0,39415.0,0.21242693]
[1645908987839,0.105523,39421.0,39416.0,0.095]
[1645908988381,0.104523,39421.0,39416.0,0.095]
[1645908988581,0.106523,39421.0,39416.0,0.095]
[1645908988779,0.106523,39421.0,39416.0,0.28062016]
[1645908988984,0.106523,39421.0,39416.0,0.18562016]
[1645908989188,0.002,39421.0,39420.0,0.095]
[1645908989784,0.4998,39426.0,39420.0,0.095]
[1645908989982,0.4998,39426.0,39424.0,0.17200148]
[1645908990182,0.378788,39425.0,39424.0,0.17200148]
[1645908990387,0.104523,39425.0,39424.0,0.26700148]
[1645908991386,0.378788,39425.0,39424.0,0.095]
[1645908991584,0.378788,39425.0,39418.0,0.3]
[1645908991585,0.378788,39425.0,39422.0,0.15854402]
[1645908991837,0.378788,39425.0,39423.0,0.095]
[1645908992041,0.4998,39426.0,39423.0,0.095]
[1645908992237,0.378788,39425.0,39423.0,0.095]
[1645908992437,0.378788,39425.0,39419.0,0.21384113]
[1645908992438,0.002,39425.0,39419.0,0.21384113]
[1645908992944,0.380788,39425.0,39424.0,0.095]
[1645908993340,0.380788,39425.0,39423.0,0.095]
[1645908993740,0.378788,39425.0,39423.0,0.095]
[1645908993940,0.378788,39425.0,39419.0,0.095]
[1645908994339,0.378788,39425.0,39418.0,0.095]
[1645908994539,0.379788,39425.0,39418.0,0.095]
[1645908995779,0.378788,39425.0,39418.0,0.095]
[1645908996180,0.563269,39426.0,39415.0,0.4670255]
[1645908996382,0.942057,39426.0,39425.0,0.095]
[1645908996581,0.104523,39425.0,39420.0,0.20815106]
[1645908996781,0.378788,39425.0,39420.0,0.20815106]
[1645908997580,0.378788,39425.0,39424.0,0.095]
[1645908998484,0.379788,39425.0,39424.0,0.095]
[1645908999837,0.378788,39425.0,39424.0,0.095]
[1645909000639,0.379788,39425.0,39424.0,0.095]
[1645909000833,0.379788,39425.0,39417.0,0.3]
[1645909001037,0.063474,39423.0,39419.0,0.095]
[1645909001234,0.378788,39422.0,39419.0,0.095]
[1645909001833,0.378788,39425.0,39420.0,0.095]
[1645909002236,0.4998,39426.0,39418.0,0.17319712]
[1645909002436,0.4998,39426.0,39425.0,0.095]
[1645909002636,0.4998,39426.0,39419.0,0.3]
[1645909002834,0.4998,39426.0,39420.0,0.378788]
[1645909003080,0.4998,39426.0,39425.0,0.47700259]
[1645909003681,0.4998,39426.0,39425.0,0.2913392]
[1645909004282,0.4998,39426.0,39425.0,0.095]
[1645909004481,0.002,39426.0,39425.0,0.095]
[1645909005282,0.002,39426.0,39425.0,0.31310585]
[1645909005887,0.063461,39433.0,39425.0,0.31310585]
[1645909006082,0.063461,39433.0,39429.0,0.095]
[1645909006282,0.378788,39432.0,39429.0,0.095]
[1645909006930,0.378788,39432.0,39424.0,0.20169515]
[1645909007329,0.065461,39433.0,39424.0,0.20169515]
[1645909007734,0.378788,39432.0,39424.0,0.20169515]
[1645909007934,0.063461,39433.0,39424.0,0.20169515]
[1645909008338,0.063461,39433.0,39429.0,0.095]
[1645909008538,0.378788,39432.0,39429.0,0.095]
[1645909009936,0.3778845,39432.0,39429.0,0.095]
[1645909010590,0.001,39432.0,39431.0,0.095]
[1645909011389,0.001,39432.0,39431.0,0.094899]
[1645909011888,0.4998,39434.0,39431.0,0.094899]
[1645909012085,0.4998,39434.0,39432.0,0.094899]
[1645909012487,0.5008,39434.0,39432.0,0.094899]
[1645909012688,0.5008,39434.0,39430.0,0.094899]
[1645909012888,0.5008,39434.0,39430.0,0.09460319]
[1645909013891,0.4998,39434.0,39430.0,0.09460319]
[1645909014536,0.5018,39434.0,39430.0,0.09460319]
[1645909014936,0.5018,39434.0,39428.0,0.21623487]
[1645909015336,0.5018,39434.0,39432.0,0.09460319]
[1645909015537,0.5018,39434.0,39428.0,0.21623487]
[1645909015737,0.5018,39434.0,39430.0,0.09460319]
[1645909015939,0.4998,39434.0,39430.0,0.09460319]
[1645909016537,0.5018,39434.0,39430.0,0.09460319]
[1645909017938,0.4998,39434.0,39430.0,0.09460319]
[1645909018583,0.5018,39434.0,39428.0,0.21623487]
[1645909018786,0.063458,39433.0,39425.0,0.09460319]
[1645909019183,0.063458,39433.0,39425.0,0.31750664]
[1645909020286,0.063458,39433.0,39427.0,0.09460319]
[1645909020683,0.06478849,39433.0,39427.0,0.09460319]
[1645909021938,0.06278849,39433.0,39427.0,0.09460319]
[1645909022740,0.06378849,39433.0,39424.0,0.02437601]
[1645909023736,0.06378849,39433.0,39431.0,0.09460319]
[1645909024142,0.06278849,39433.0,39431.0,0.09460319]